[Event "Early-Titled-Tuesday-Blitz-February-06-2024"]
[Site "Chess.com"]
[Date "2024.02.06"]
[Round "8"]
[White "ozates"]
[Black "FrenchMonster2002"]
[Result "0-1"]
[WhiteElo "2620"]
[BlackElo "2463"]
[TimeControl "180+1"]
[EndTime "9:26:27 PST"]
[Termination "FrenchMonster2002 won by resignation"]

1. e4 {[%clk 0:03:00.9]} 1... e5 {[%clk 0:02:57]} 2. Nf3 {[%clk 0:03:01.2]} 2...
Nf6 {[%clk 0:02:57.6]} 3. d4 {[%clk 0:03:00.6]} 3... Nxe4 {[%clk 0:02:57.8]} 4.
Bd3 {[%clk 0:03:00.3]} 4... d5 {[%clk 0:02:58.1]} 5. Nxe5 {[%clk 0:03:00.3]}
5... Nd7 {[%clk 0:02:58.3]} 6. Nc3 {[%clk 0:03:00.1]} 6... Nxe5 {[%clk
0:02:55.9]} 7. dxe5 {[%clk 0:03:00.1]} 7... Bb4 {[%clk 0:02:56.6]} 8. O-O {[%clk
0:02:58.7]} 8... Nxc3 {[%clk 0:02:56.9]} 9. bxc3 {[%clk 0:02:57.7]} 9... Bxc3
{[%clk 0:02:57.8]} 10. Rb1 {[%clk 0:02:49.1]} 10... O-O {[%clk 0:02:58.2]} 11.
Bxh7+ {[%clk 0:02:46.4]} 11... Kxh7 {[%clk 0:02:59.1]} 12. Qd3+ {[%clk
0:02:46.8]} 12... Kg8 {[%clk 0:02:59.9]} 13. Qxc3 {[%clk 0:02:47.4]} 13... a5
{[%clk 0:03:00.6]} 14. Qg3 {[%clk 0:02:35.2]} 14... Ra6 {[%clk 0:02:57]} 15. Bg5
{[%clk 0:02:34]} 15... Qd7 {[%clk 0:02:57]} 16. Rb3 {[%clk 0:02:18.1]} 16... Rg6
{[%clk 0:02:45.7]} 17. Qh4 {[%clk 0:02:12.6]} 17... Qf5 {[%clk 0:02:39.4]} 18.
Rh3 {[%clk 0:02:04.2]} 18... f6 {[%clk 0:02:16.2]} 19. exf6 {[%clk 0:01:43.7]}
19... Qxg5 {[%clk 0:02:12.1]} 20. f7+ {[%clk 0:01:09.6]} 20... Kxf7 {[%clk
0:02:09]} 21. Rf3+ {[%clk 0:01:09.6]} 21... Kg8 {[%clk 0:01:55.2]} 22. Rxf8+
{[%clk 0:01:08.9]} 22... Kxf8 {[%clk 0:01:55.7]} 23. Qh8+ {[%clk 0:01:09.6]}
23... Kf7 {[%clk 0:01:56.3]} 24. g3 {[%clk 0:01:07.6]} 24... Be6 {[%clk
0:01:48.7]} 25. Re1 {[%clk 0:01:03.8]} 25... Qd2 {[%clk 0:01:36.5]} 26. Rf1
{[%clk 0:00:39.9]} 26... Qxc2 {[%clk 0:01:28.4]} 27. f4 {[%clk 0:00:32.7]} 27...
Rh6 {[%clk 0:01:18.4]} 0-1

[Event "Early-Titled-Tuesday-Blitz-February-06-2024"]
[Site "Chess.com"]
[Date "2024.02.06"]
[Round "8"]
[White "Gennady_Kozlov"]
[Black "Atousa"]
[Result "1-0"]
[WhiteElo "2717"]
[BlackElo "2485"]
[TimeControl "180+1"]
[EndTime "9:26:31 PST"]
[Termination "Gennady_Kozlov won by checkmate"]

1. b3 {[%clk 0:02:59.9]} 1... e5 {[%clk 0:02:57.4]} 2. Bb2 {[%clk 0:03:00.8]}
2... Nc6 {[%clk 0:02:57.4]} 3. e3 {[%clk 0:03:01.2]} 3... Nf6 {[%clk 0:02:57.3]}
4. Bb5 {[%clk 0:03:00.1]} 4... Bd6 {[%clk 0:02:57.4]} 5. Ne2 {[%clk 0:03:00.4]}
5... O-O {[%clk 0:02:57.2]} 6. d4 {[%clk 0:03:00.4]} 6... exd4 {[%clk
0:02:51.5]} 7. Bxc6 {[%clk 0:02:58.1]} 7... dxc6 {[%clk 0:02:50.9]} 8. Qxd4
{[%clk 0:02:57.1]} 8... Bf5 {[%clk 0:02:40.8]} 9. Na3 {[%clk 0:02:42]} 9... Re8
{[%clk 0:02:30.6]} 10. O-O-O {[%clk 0:02:40.4]} 10... Bxa3 {[%clk 0:01:50.5]}
11. Bxa3 {[%clk 0:02:37.6]} 11... Qxd4 {[%clk 0:01:49.3]} 12. Nxd4 {[%clk
0:02:38.5]} 12... Bg6 {[%clk 0:01:46.7]} 13. Rhe1 {[%clk 0:02:26.1]} 13... Ne4
{[%clk 0:01:34.1]} 14. f3 {[%clk 0:02:23.7]} 14... Nc3 {[%clk 0:01:32]} 15. Rd2
{[%clk 0:02:23.4]} 15... c5 {[%clk 0:01:13.7]} 16. Bxc5 {[%clk 0:02:18.8]} 16...
b6 {[%clk 0:01:14]} 17. Ba3 {[%clk 0:02:18.3]} 17... c5 {[%clk 0:01:14.4]} 18.
Nc6 {[%clk 0:02:01.8]} 18... Rac8 {[%clk 0:01:10.9]} 19. Bb2 {[%clk 0:01:57.7]}
19... Nxa2+ {[%clk 0:00:58.4]} 20. Kb1 {[%clk 0:01:57.1]} 20... Rxc6 {[%clk
0:00:47.8]} 21. Kxa2 {[%clk 0:01:56.2]} 21... c4 {[%clk 0:00:48.5]} 22. bxc4
{[%clk 0:01:56]} 22... Rxc4 {[%clk 0:00:47.8]} 23. Kb3 {[%clk 0:01:55.3]} 23...
Rc5 {[%clk 0:00:40.5]} 24. e4 {[%clk 0:01:53.2]} 24... Rb5+ {[%clk 0:00:32.2]}
25. Ka2 {[%clk 0:01:50.3]} 25... f6 {[%clk 0:00:30.2]} 26. Red1 {[%clk
0:01:47.3]} 26... Bf7+ {[%clk 0:00:29.6]} 27. Kb1 {[%clk 0:01:46.9]} 27... h5
{[%clk 0:00:26.6]} 28. Rd8 {[%clk 0:01:45.5]} 28... Kf8 {[%clk 0:00:23.9]} 29.
Kc1 {[%clk 0:01:42.5]} 29... Rxd8 {[%clk 0:00:22.1]} 30. Rxd8+ {[%clk
0:01:43.3]} 30... Ke7 {[%clk 0:00:22.9]} 31. Ra8 {[%clk 0:01:41.2]} 31... a5
{[%clk 0:00:22.8]} 32. Ba3+ {[%clk 0:01:39.1]} 32... Ke6 {[%clk 0:00:23.2]} 33.
Ra7 {[%clk 0:01:38.1]} 33... g5 {[%clk 0:00:22.2]} 34. Re7# {[%clk 0:01:37.7]}
1-0

[Event "Early-Titled-Tuesday-Blitz-February-06-2024"]
[Site "Chess.com"]
[Date "2024.02.06"]
[Round "8"]
[White "AnaKuchava"]
[Black "Willi_Skibbe"]
[Result "1-0"]
[WhiteElo "2201"]
[BlackElo "2320"]
[TimeControl "180+1"]
[EndTime "9:26:37 PST"]
[Termination "AnaKuchava won by resignation"]

1. d4 {[%clk 0:03:00.9]} 1... d5 {[%clk 0:02:18.2]} 2. Nf3 {[%clk 0:02:59]} 2...
Nf6 {[%clk 0:02:17.1]} 3. c4 {[%clk 0:02:57.4]} 3... c6 {[%clk 0:02:16.4]} 4.
Qb3 {[%clk 0:02:56.9]} 4... a6 {[%clk 0:02:13.5]} 5. Bg5 {[%clk 0:02:48.6]} 5...
b5 {[%clk 0:02:06.3]} 6. cxd5 {[%clk 0:02:37.3]} 6... cxd5 {[%clk 0:02:03.5]} 7.
e3 {[%clk 0:02:27.5]} 7... e6 {[%clk 0:01:51.9]} 8. Bd3 {[%clk 0:02:21]} 8...
Be7 {[%clk 0:01:51.2]} 9. O-O {[%clk 0:02:16.6]} 9... O-O {[%clk 0:01:46]} 10.
Nc3 {[%clk 0:02:15.8]} 10... Nbd7 {[%clk 0:01:40.1]} 11. Rac1 {[%clk 0:02:13.5]}
11... Nb6 {[%clk 0:01:39.2]} 12. a4 {[%clk 0:02:09.9]} 12... b4 {[%clk
0:01:37.7]} 13. a5 {[%clk 0:02:00.4]} 13... Nc4 {[%clk 0:01:25.2]} 14. Na4
{[%clk 0:01:55.6]} 14... Nxa5 {[%clk 0:01:24]} 15. Qc2 {[%clk 0:01:52.7]} 15...
Bd7 {[%clk 0:01:14.6]} 16. Bxf6 {[%clk 0:01:48.2]} 16... gxf6 {[%clk 0:00:35.5]}
17. Bxh7+ {[%clk 0:01:41.6]} 17... Kg7 {[%clk 0:00:35.8]} 18. Bd3 {[%clk
0:01:40.5]} 18... Bxa4 {[%clk 0:00:33.2]} 19. Qxa4 {[%clk 0:01:41.4]} 19... Qb6
{[%clk 0:00:23.9]} 20. Nd2 {[%clk 0:01:32.2]} 20... Rfc8 {[%clk 0:00:21.4]} 21.
Rc2 {[%clk 0:01:29.9]} 21... Rxc2 {[%clk 0:00:20]} 22. Qxc2 {[%clk 0:01:25.2]}
22... Rc8 {[%clk 0:00:20.9]} 23. Qxc8 {[%clk 0:01:24]} 1-0

[Event "Early-Titled-Tuesday-Blitz-February-06-2024"]
[Site "Chess.com"]
[Date "2024.02.06"]
[Round "8"]
[White "Predo63"]
[Black "CSB7"]
[Result "0-1"]
[WhiteElo "2516"]
[BlackElo "2729"]
[TimeControl "180+1"]
[EndTime "9:26:47 PST"]
[Termination "CSB7 won by resignation"]

1. d4 {[%clk 0:03:00.9]} 1... Nf6 {[%clk 0:03:00.1]} 2. Bg5 {[%clk 0:03:00.6]}
2... Ne4 {[%clk 0:02:56.9]} 3. Bf4 {[%clk 0:03:00.8]} 3... c5 {[%clk 0:02:44.4]}
4. c3 {[%clk 0:03:00.3]} 4... Qb6 {[%clk 0:02:37.6]} 5. Qb3 {[%clk 0:02:56.5]}
5... cxd4 {[%clk 0:02:32.2]} 6. Qxb6 {[%clk 0:02:56.1]} 6... axb6 {[%clk
0:02:33.1]} 7. Bxb8 {[%clk 0:02:55.5]} 7... dxc3 {[%clk 0:02:27]} 8. Nxc3 {[%clk
0:02:55]} 8... Nxc3 {[%clk 0:02:25.3]} 9. bxc3 {[%clk 0:02:55]} 9... Rxb8 {[%clk
0:02:25.4]} 10. a4 {[%clk 0:02:54.9]} 10... e6 {[%clk 0:02:12.3]} 11. e3 {[%clk
0:02:54]} 11... Bc5 {[%clk 0:02:08.8]} 12. Kd2 {[%clk 0:02:53.1]} 12... Ke7
{[%clk 0:02:07.7]} 13. Bb5 {[%clk 0:02:53]} 13... d6 {[%clk 0:02:00.2]} 14. Nf3
{[%clk 0:02:53.1]} 14... Bd7 {[%clk 0:02:00.3]} 15. Nd4 {[%clk 0:02:52.8]} 15...
Ra8 {[%clk 0:01:55.9]} 16. Rhb1 {[%clk 0:02:42.3]} 16... Ra7 {[%clk 0:01:51.1]}
17. Kc2 {[%clk 0:02:40.8]} 17... Rha8 {[%clk 0:01:48.8]} 18. Kb2 {[%clk
0:02:38.8]} 18... d5 {[%clk 0:00:42.9]} 19. Nb3 {[%clk 0:02:35]} 19... Bd6
{[%clk 0:00:40.4]} 20. Nd4 {[%clk 0:02:33.6]} 20... Be5 {[%clk 0:00:31.3]} 21.
f4 {[%clk 0:02:32.3]} 21... Bxd4 {[%clk 0:00:29.8]} 22. cxd4 {[%clk 0:02:32.2]}
22... Ra5 {[%clk 0:00:27]} 23. Bxd7 {[%clk 0:02:23.6]} 23... Kxd7 {[%clk
0:00:27.9]} 24. Rc1 {[%clk 0:02:14.6]} 24... Rxa4 {[%clk 0:00:26.2]} 25. Rxa4
{[%clk 0:02:14.8]} 25... Rxa4 {[%clk 0:00:27.1]} 26. Kb3 {[%clk 0:02:15.3]}
26... b5 {[%clk 0:00:26.2]} 27. Rc5 {[%clk 0:02:13.8]} 27... Ra1 {[%clk
0:00:24.3]} 28. Rxb5 {[%clk 0:02:13.9]} 28... Rb1+ {[%clk 0:00:23.5]} 29. Ka4
{[%clk 0:02:13.7]} 29... Ra1+ {[%clk 0:00:22.7]} 30. Kb3 {[%clk 0:02:12.1]}
30... Rb1+ {[%clk 0:00:23.6]} 31. Ka4 {[%clk 0:02:12.1]} 31... Rxb5 {[%clk
0:00:23.6]} 32. Kxb5 {[%clk 0:02:12.3]} 32... Kc7 {[%clk 0:00:22]} 33. g4 {[%clk
0:02:08.5]} 33... g6 {[%clk 0:00:20.6]} 34. h4 {[%clk 0:02:08]} 34... h5 {[%clk
0:00:19.8]} 35. g5 {[%clk 0:02:06.2]} 35... b6 {[%clk 0:00:16.7]} 36. Kb4 {[%clk
0:02:04.4]} 36... Kb8 {[%clk 0:00:15.4]} 37. Ka4 {[%clk 0:02:01.3]} 37... Ka8
{[%clk 0:00:15.1]} 38. Kb4 {[%clk 0:02:01.2]} 38... Ka7 {[%clk 0:00:15.7]} 39.
Kb5 {[%clk 0:02:01]} 39... Kb7 {[%clk 0:00:16.4]} 40. Kb4 {[%clk 0:02:01.5]}
40... Ka6 {[%clk 0:00:16.8]} 41. Ka4 {[%clk 0:02:02]} 41... b5+ {[%clk
0:00:17.3]} 42. Kb4 {[%clk 0:02:02.5]} 42... Kb6 {[%clk 0:00:18.2]} 43. Kb3
{[%clk 0:02:03]} 43... Ka5 {[%clk 0:00:18.7]} 44. Ka3 {[%clk 0:02:03.5]} 44...
b4+ {[%clk 0:00:19.2]} 45. Kb3 {[%clk 0:02:03.8]} 45... Kb5 {[%clk 0:00:20.1]}
46. Kb2 {[%clk 0:02:04.3]} 46... Kc4 {[%clk 0:00:20.9]} 47. Kc2 {[%clk
0:02:04.5]} 47... b3+ {[%clk 0:00:21.4]} 48. Kb2 {[%clk 0:02:05]} 48... Kd3
{[%clk 0:00:22.3]} 49. Kxb3 {[%clk 0:02:05.6]} 49... Kxe3 {[%clk 0:00:23.1]} 50.
Kb4 {[%clk 0:02:06.3]} 50... Kxf4 {[%clk 0:00:21.8]} 51. Kc5 {[%clk 0:02:06.6]}
51... Kg4 {[%clk 0:00:21]} 52. Kd6 {[%clk 0:02:06.8]} 52... Kxh4 {[%clk
0:00:21.7]} 53. Ke5 {[%clk 0:02:07.1]} 53... Kxg5 {[%clk 0:00:22.5]} 0-1

[Event "Early-Titled-Tuesday-Blitz-February-06-2024"]
[Site "Chess.com"]
[Date "2024.02.06"]
[Round "8"]
[White "JoliyRoger"]
[Black "tarno17"]
[Result "1-0"]
[WhiteElo "2495"]
[BlackElo "2127"]
[TimeControl "180+1"]
[EndTime "9:26:47 PST"]
[Termination "JoliyRoger won on time"]

1. d4 {[%clk 0:03:00.9]} 1... d5 {[%clk 0:03:00.1]} 2. c4 {[%clk 0:03:01.1]}
2... e6 {[%clk 0:03:00.6]} 3. Nc3 {[%clk 0:03:01.7]} 3... Nf6 {[%clk 0:03:00.7]}
4. Bg5 {[%clk 0:03:01.8]} 4... Be7 {[%clk 0:03:00.8]} 5. e3 {[%clk 0:03:01]}
5... h6 {[%clk 0:02:58.1]} 6. Bh4 {[%clk 0:03:00.4]} 6... O-O {[%clk 0:02:50.4]}
7. Nf3 {[%clk 0:02:59.6]} 7... b6 {[%clk 0:02:50.7]} 8. Bxf6 {[%clk 0:02:56.4]}
8... Bxf6 {[%clk 0:02:50.6]} 9. cxd5 {[%clk 0:02:57.3]} 9... exd5 {[%clk
0:02:51.1]} 10. Qb3 {[%clk 0:02:57.4]} 10... Bb7 {[%clk 0:02:41.3]} 11. Rd1
{[%clk 0:02:57.3]} 11... a5 {[%clk 0:02:24.2]} 12. Bd3 {[%clk 0:02:55.6]} 12...
Na6 {[%clk 0:02:21]} 13. O-O {[%clk 0:02:55.8]} 13... Nb4 {[%clk 0:02:06.6]} 14.
Bb1 {[%clk 0:02:56.1]} 14... Qd7 {[%clk 0:01:43.3]} 15. a3 {[%clk 0:02:51]}
15... Na6 {[%clk 0:01:32.9]} 16. Qc2 {[%clk 0:02:50.8]} 16... g6 {[%clk
0:01:32]} 17. Ba2 {[%clk 0:02:51.4]} 17... Rac8 {[%clk 0:01:00]} 18. Rfe1 {[%clk
0:02:17.7]} 18... Rfe8 {[%clk 0:00:43.3]} 19. h4 {[%clk 0:02:06.8]} 19... c6
{[%clk 0:00:29.3]} 20. h5 {[%clk 0:02:03.6]} 20... gxh5 {[%clk 0:00:16]} 21. Bb1
{[%clk 0:02:03.4]} 21... Qg4 {[%clk 0:00:11.9]} 22. Qh7+ {[%clk 0:01:52.8]}
22... Kf8 {[%clk 0:00:11.5]} 23. Qxh6+ {[%clk 0:01:53.4]} 23... Bg7 {[%clk
0:00:02]} 24. Qd6+ {[%clk 0:01:52.7]} 24... Kg8 {[%clk 0:00:02.3]} 25. Qh2
{[%clk 0:01:45]} 25... Rcd8 {[%clk 0:00:02.8]} 26. Nh4 {[%clk 0:01:37.7]} 26...
Re6 {[%clk 0:00:03.1]} 27. Bf5 {[%clk 0:01:36.9]} 27... Rf6 {[%clk 0:00:03.3]}
28. Bxg4 {[%clk 0:01:37.1]} 28... hxg4 {[%clk 0:00:01.9]} 29. Qg3 {[%clk
0:01:34.8]} 1-0

[Event "Early-Titled-Tuesday-Blitz-February-06-2024"]
[Site "Chess.com"]
[Date "2024.02.06"]
[Round "8"]
[White "MAGMAchess02"]
[Black "LeninGuerra"]
[Result "0-1"]
[WhiteElo "2269"]
[BlackElo "2642"]
[TimeControl "180+1"]
[EndTime "9:26:49 PST"]
[Termination "LeninGuerra won on time"]

1. e4 {[%clk 0:03:00.9]} 1... c5 {[%clk 0:03:00.5]} 2. Nc3 {[%clk 0:02:58.5]}
2... e6 {[%clk 0:03:01.4]} 3. Nf3 {[%clk 0:02:58.2]} 3... b6 {[%clk 0:03:01.9]}
4. g3 {[%clk 0:02:53.3]} 4... Bb7 {[%clk 0:03:01.7]} 5. Bg2 {[%clk 0:02:53.8]}
5... d6 {[%clk 0:03:02.6]} 6. O-O {[%clk 0:02:53.4]} 6... Nd7 {[%clk 0:03:02.4]}
7. d4 {[%clk 0:02:51.9]} 7... cxd4 {[%clk 0:03:02]} 8. Qxd4 {[%clk 0:02:52.3]}
8... a6 {[%clk 0:03:02.9]} 9. Bg5 {[%clk 0:02:44.5]} 9... Qc7 {[%clk 0:03:02.8]}
10. Rad1 {[%clk 0:02:41.1]} 10... h6 {[%clk 0:03:02.8]} 11. Be3 {[%clk
0:02:39.8]} 11... Ngf6 {[%clk 0:03:02.8]} 12. Rfe1 {[%clk 0:02:25.9]} 12... Be7
{[%clk 0:03:02.7]} 13. h3 {[%clk 0:01:57.4]} 13... O-O {[%clk 0:03:02.2]} 14.
Nd2 {[%clk 0:01:47.5]} 14... Rac8 {[%clk 0:03:01.5]} 15. f4 {[%clk 0:01:34.2]}
15... b5 {[%clk 0:03:00.6]} 16. a3 {[%clk 0:01:33.5]} 16... Rfd8 {[%clk
0:02:58.4]} 17. Kh2 {[%clk 0:01:33]} 17... Nf8 {[%clk 0:02:54.1]} 18. Bf2 {[%clk
0:01:23]} 18... d5 {[%clk 0:02:41.4]} 19. e5 {[%clk 0:01:14.2]} 19... Ne4 {[%clk
0:02:41.3]} 20. Ndxe4 {[%clk 0:01:08.5]} 20... dxe4 {[%clk 0:02:42.2]} 21. Qe3
{[%clk 0:01:08.3]} 21... Rxd1 {[%clk 0:02:41.3]} 22. Rxd1 {[%clk 0:01:08.4]}
22... b4 {[%clk 0:02:40.1]} 23. axb4 {[%clk 0:01:07.4]} 23... Bxb4 {[%clk
0:02:41]} 24. Bxe4 {[%clk 0:00:49.6]} 24... Bxe4 {[%clk 0:02:37.2]} 25. Qxe4
{[%clk 0:00:46.6]} 25... Bxc3 {[%clk 0:02:35.8]} 26. bxc3 {[%clk 0:00:47.5]}
26... Qxc3 {[%clk 0:02:35.8]} 27. Kg2 {[%clk 0:00:39.2]} 27... Ng6 {[%clk
0:02:30.9]} 28. h4 {[%clk 0:00:19]} 28... Ne7 {[%clk 0:02:30.5]} 29. Rd6 {[%clk
0:00:05.2]} 29... Nf5 {[%clk 0:02:18.7]} 30. Rxa6 {[%clk 0:00:03.4]} 30... Qxc2
{[%clk 0:02:18.8]} 31. Qxc2 {[%clk 0:00:03.5]} 31... Rxc2 {[%clk 0:02:19.3]} 32.
Ra8+ {[%clk 0:00:04.2]} 32... Kh7 {[%clk 0:02:18.5]} 33. Kf3 {[%clk 0:00:04.8]}
33... h5 {[%clk 0:02:16.6]} 34. Rd8 {[%clk 0:00:03.8]} 34... Rc3+ {[%clk
0:02:15.3]} 35. Kg2 {[%clk 0:00:04.2]} 35... Nh6 {[%clk 0:02:15.3]} 36. Rd7
{[%clk 0:00:02.4]} 36... Kg6 {[%clk 0:02:14.8]} 37. Rd6 {[%clk 0:00:02.6]} 37...
Ng4 {[%clk 0:02:14.5]} 38. Rd8 {[%clk 0:00:03.2]} 38... Rc2 {[%clk 0:02:14.3]}
39. Kh3 {[%clk 0:00:03.8]} 39... Rxf2 {[%clk 0:02:13.1]} 40. f5+ {[%clk
0:00:04.7]} 40... Rxf5 {[%clk 0:02:04.6]} 41. Rg8 {[%clk 0:00:03]} 41... Rxe5
{[%clk 0:02:03.2]} 42. Rh8 {[%clk 0:00:02.7]} 42... Nf6 {[%clk 0:02:03]} 43. Rh7
{[%clk 0:00:02.2]} 43... Nxh7 {[%clk 0:02:01.7]} 0-1

[Event "Early-Titled-Tuesday-Blitz-February-06-2024"]
[Site "Chess.com"]
[Date "2024.02.06"]
[Round "8"]
[White "mary-sanna"]
[Black "falzehope0"]
[Result "0-1"]
[WhiteElo "2195"]
[BlackElo "2356"]
[TimeControl "180+1"]
[EndTime "9:26:51 PST"]
[Termination "falzehope0 won by checkmate"]

1. d4 {[%clk 0:02:48]} 1... e6 {[%clk 0:02:52.3]} 2. c4 {[%clk 0:02:47.8]} 2...
d5 {[%clk 0:02:52.3]} 3. Nf3 {[%clk 0:02:47.5]} 3... c6 {[%clk 0:02:52.3]} 4. g3
{[%clk 0:02:47.8]} 4... Bd6 {[%clk 0:02:51.9]} 5. Bg2 {[%clk 0:02:48.2]} 5... f5
{[%clk 0:02:51.8]} 6. Bf4 {[%clk 0:02:47.3]} 6... Nf6 {[%clk 0:02:47.7]} 7. e3
{[%clk 0:02:47.4]} 7... O-O {[%clk 0:02:47.3]} 8. O-O {[%clk 0:02:47.4]} 8...
Be7 {[%clk 0:02:45.8]} 9. Nc3 {[%clk 0:02:34.1]} 9... Nh5 {[%clk 0:02:43]} 10.
Ne5 {[%clk 0:02:22.4]} 10... Nxf4 {[%clk 0:02:41.9]} 11. gxf4 {[%clk 0:02:21.3]}
11... Nd7 {[%clk 0:02:35.3]} 12. Kh1 {[%clk 0:02:03.2]} 12... Nxe5 {[%clk
0:02:34]} 13. dxe5 {[%clk 0:01:53.7]} 13... Kh8 {[%clk 0:02:28.6]} 14. Rg1
{[%clk 0:01:41.8]} 14... b6 {[%clk 0:02:25.5]} 15. cxd5 {[%clk 0:01:35.5]} 15...
cxd5 {[%clk 0:02:25]} 16. Nb5 {[%clk 0:01:31.3]} 16... Ba6 {[%clk 0:02:13]} 17.
Nd4 {[%clk 0:01:30.9]} 17... Qd7 {[%clk 0:02:11]} 18. Rc1 {[%clk 0:01:27.3]}
18... Rac8 {[%clk 0:02:10.1]} 19. Qd2 {[%clk 0:01:17.7]} 19... g5 {[%clk
0:02:05]} 20. fxg5 {[%clk 0:01:06.8]} 20... Bxg5 {[%clk 0:02:04.1]} 21. f4
{[%clk 0:01:06.4]} 21... Be7 {[%clk 0:02:03.6]} 22. Bf3 {[%clk 0:01:05.5]} 22...
Rg8 {[%clk 0:02:02.6]} 23. Rxc8 {[%clk 0:01:03.3]} 23... Qxc8 {[%clk 0:01:58.8]}
24. Rxg8+ {[%clk 0:00:52.2]} 24... Qxg8 {[%clk 0:01:57.9]} 25. Qg2 {[%clk
0:00:52.1]} 25... Qf7 {[%clk 0:01:53.9]} 26. Qh3 {[%clk 0:00:40.8]} 26... Bd3
{[%clk 0:01:48.6]} 27. Bh5 {[%clk 0:00:28]} 27... Qg8 {[%clk 0:01:36.8]} 28. Qg3
{[%clk 0:00:25.1]} 28... Qc8 {[%clk 0:01:29.4]} 29. Bf7 {[%clk 0:00:06.3]} 29...
Qc1+ {[%clk 0:01:23.5]} 30. Kg2 {[%clk 0:00:06.7]} 30... Qf1# {[%clk 0:01:23.5]}
0-1

[Event "Early-Titled-Tuesday-Blitz-February-06-2024"]
[Site "Chess.com"]
[Date "2024.02.06"]
[Round "8"]
[White "NowInChess"]
[Black "tusplingher"]
[Result "0-1"]
[WhiteElo "2331"]
[BlackElo "2454"]
[TimeControl "180+1"]
[EndTime "9:26:52 PST"]
[Termination "tusplingher won on time"]

1. e4 {[%clk 0:03:00.9]} 1... c5 {[%clk 0:02:59.9]} 2. d3 {[%clk 0:03:00.7]}
2... Nc6 {[%clk 0:02:59.7]} 3. g3 {[%clk 0:03:01.1]} 3... g6 {[%clk 0:03:00.1]}
4. Bg2 {[%clk 0:03:01.3]} 4... Bg7 {[%clk 0:03:00.6]} 5. f4 {[%clk 0:03:01.9]}
5... d6 {[%clk 0:03:01.3]} 6. Nf3 {[%clk 0:03:02.4]} 6... Nf6 {[%clk 0:03:01.9]}
7. O-O {[%clk 0:03:02.4]} 7... O-O {[%clk 0:03:02.6]} 8. Nc3 {[%clk 0:03:02.1]}
8... Bg4 {[%clk 0:03:00.8]} 9. h3 {[%clk 0:03:01.4]} 9... Bxf3 {[%clk
0:03:01.1]} 10. Qxf3 {[%clk 0:03:02.3]} 10... Rb8 {[%clk 0:02:59.2]} 11. a4
{[%clk 0:03:01.2]} 11... a6 {[%clk 0:02:58.7]} 12. Kh2 {[%clk 0:02:55.4]} 12...
Nd4 {[%clk 0:02:58.4]} 13. Qf2 {[%clk 0:02:54.4]} 13... b5 {[%clk 0:02:58.2]}
14. axb5 {[%clk 0:02:53.7]} 14... axb5 {[%clk 0:02:58.1]} 15. g4 {[%clk
0:02:37.8]} 15... b4 {[%clk 0:02:56.4]} 16. Nd1 {[%clk 0:02:34.5]} 16... Nd7
{[%clk 0:02:53.7]} 17. Ne3 {[%clk 0:02:20.1]} 17... Ra8 {[%clk 0:02:36]} 18. Bd2
{[%clk 0:02:15.3]} 18... Rxa1 {[%clk 0:02:35.3]} 19. Rxa1 {[%clk 0:02:16.2]}
19... e5 {[%clk 0:02:30.5]} 20. f5 {[%clk 0:02:07]} 20... Bh6 {[%clk 0:02:29.4]}
21. Nd5 {[%clk 0:01:56.5]} 21... Bxd2 {[%clk 0:02:27.1]} 22. Qxd2 {[%clk
0:01:57.4]} 22... Nf6 {[%clk 0:02:10.9]} 23. Ra8 {[%clk 0:01:08]} 23... Qxa8
{[%clk 0:02:04.2]} 24. Nxf6+ {[%clk 0:01:07.9]} 24... Kg7 {[%clk 0:02:02.9]} 25.
Qg5 {[%clk 0:00:46.1]} 25... Qd8 {[%clk 0:01:56]} 26. Nh5+ {[%clk 0:00:31.9]}
26... Kh8 {[%clk 0:01:54.8]} 27. f6 {[%clk 0:00:19.4]} 27... Ne6 {[%clk
0:01:53.2]} 28. Qh6 {[%clk 0:00:08.2]} 28... gxh5 {[%clk 0:01:51.2]} 29. gxh5
{[%clk 0:00:06.2]} 29... Rg8 {[%clk 0:01:50.2]} 30. Bf3 {[%clk 0:00:06.4]} 30...
Qf8 {[%clk 0:01:39.8]} 31. Qe3 {[%clk 0:00:02.2]} 31... Nf4 {[%clk 0:01:37.1]}
32. Bg4 {[%clk 0:00:01.8]} 32... Qh6 {[%clk 0:01:35.9]} 0-1